fUSD/lending_fUSD_20241121
["ID","MTS","AMOUNT","RATE_DAILY","PERIOD"]
[342862057,1732188651404,-709.74,0.00041095,18]
[342862058,1732188651414,-500.0,0.00041095,18]
[342862059,1732188651423,-1294.15,0.00041095,18]
[342862060,1732188651432,-500.0,0.00041095,18]
[342862061,1732188651441,-500.0,0.00041095,18]
[342862062,1732188651450,-500.0,0.00041095,18]
[342862063,1732188651459,-500.0,0.00041095,18]
[342862064,1732188651470,-500.0,0.00041095,18]
[342862065,1732188651479,-539.28,0.00041095,18]
[342862066,1732188651488,-151.0,0.00041095,14]
[342862067,1732188651497,-151.0,0.00041095,14]
[342862068,1732188651510,-1074.58,0.00041095,18]
[342862069,1732188651520,-668.93,0.00041095,18]
[342862070,1732188651530,-2379.95,0.00041095,18]
[342862071,1732188651540,-967.18,0.00041095,18]
[342862072,1732188651550,-500.0,0.00041095,18]
[342862073,1732188651559,-500.0,0.00041095,18]
[342862074,1732188651568,-895.87,0.00041095,18]
[342862075,1732188651577,-500.0,0.00041095,18]
[342862076,1732188651586,-500.0,0.00041095,18]
[342862077,1732188651597,-1114.73,0.00041095,18]
[342862078,1732188651606,-500.0,0.00041095,18]
[342862079,1732188651615,-500.0,0.00041095,18]
[342862080,1732188651624,-515.12,0.00041095,18]
[342862081,1732188651632,-500.0,0.00041095,18]
[342862082,1732188651643,-2562.2,0.00041095,18]
[342862083,1732188651652,-1764.07,0.00041095,18]
[342862084,1732188651662,-500.0,0.00041095,18]
[342862085,1732188651671,-500.0,0.00041095,18]
[342862086,1732188651681,-500.0,0.00041095,18]
[342862087,1732188651690,-580.5,0.00041095,18]
[342862088,1732188651700,-500.0,0.00041095,18]
[342862089,1732188651709,-667.87,0.00041095,18]
[342862090,1732188651719,-1668.69,0.00041095,18]
[342862091,1732188651728,-1831.91,0.00041095,18]
[342862092,1732188651737,-500.0,0.00041095,18]
[342862093,1732188651747,-783.9,0.00041095,18]
[342862094,1732188651756,-1526.95,0.00041095,18]
[342862095,1732188651765,-500.0,0.00041095,18]
[342862096,1732188651774,-607.73,0.00041095,18]
[342862097,1732188651783,-500.0,0.00041095,18]
[342862098,1732188651792,-566.03,0.00041095,18]
[342862099,1732188651802,-189.2833408,0.00041095,18]
[342862100,1732188651811,-500.0,0.00041095,18]
[342862101,1732188651821,-897.2,0.00041095,18]
[342862102,1732188651830,-2223.81,0.00041095,18]
[342862103,1732188651839,-500.0,0.00041095,18]
[342862104,1732188651849,-1656.29,0.00041095,18]
[342862105,1732188651859,-870.88,0.00041095,18]
[342862106,1732188651868,-500.0,0.00041095,18]
[342862107,1732188651878,-1354.99,0.00041095,18]
[342862108,1732188651890,-500.0,0.00041095,18]
[342862109,1732188651899,-3019.61,0.00041095,18]
[342862110,1732188651908,-500.0,0.00041095,18]
[342862111,1732188651918,-500.0,0.00041095,18]
[342862112,1732188651927,-1533.0,0.00041095,18]
[342862113,1732188651936,-680.42,0.00041095,18]
[342862114,1732188651946,-542.03,0.00041095,18]
[342862115,1732188651955,-500.0,0.00041095,18]
[342862116,1732188651965,-1059.69,0.00041095,18]
[342862117,1732188651975,-500.0,0.00041095,18]
[342862118,1732188651984,-1947.03,0.00041095,18]
[342862119,1732188651994,-500.0,0.00041095,18]
[342862120,1732188652003,-151.0,0.00041095,14]
[342862121,1732188652012,-475.97066125,0.00041095,18]
[342862122,1732188652022,-559.0,0.00041095,18]
[342862123,1732188652031,-500.0,0.00041095,18]
[342862124,1732188652041,-500.0,0.00041095,18]
[342862125,1732188652050,-1932.79,0.00041095,18]
[342862126,1732188652059,-500.0,0.00041095,18]
[342862127,1732188652069,-500.0,0.00041095,18]
[342862128,1732188652078,-1363.69,0.00041095,18]
[342862129,1732188652088,-536.49808172,0.00041095,18]
[342862130,1732188652097,-500.0,0.00041095,18]
[342862131,1732188652106,-500.0,0.00041095,18]
[342862132,1732188652115,-1162.78,0.00041095,18]
[342862133,1732188652124,-500.0,0.00041095,18]
[342862134,1732188652133,-500.0,0.00041095,18]
[342862135,1732188652145,-4567.62,0.00041095,18]
[342862136,1732188652154,-500.0,0.00041095,18]
[342862137,1732188652261,-683.17,0.00041095,18]
[342862138,1732188652271,-500.0,0.00041095,18]
[342862139,1732188652280,-500.0,0.00041095,18]
[342862140,1732188652289,-500.0,0.00041095,18]
[342862141,1732188652299,-848.65,0.00041095,18]
[342862142,1732188652308,-500.0,0.00041095,18]
[342862143,1732188652317,-971.72,0.00041095,18]
[342862144,1732188652328,-500.0,0.00041095,18]
[342862145,1732188652338,-878.87,0.00041095,18]
[342862146,1732188652347,-650.3,0.00041095,18]
[342862147,1732188652357,-500.0,0.00041095,18]
[342862148,1732188652367,-500.0,0.00041095,18]
[342862149,1732188652376,-1014.47,0.00041095,18]
[342862150,1732188652385,-500.0,0.00041095,18]
[342862151,1732188652396,-669.6,0.00041095,18]
[342862152,1732188652405,-500.0,0.00041095,18]
[342862153,1732188652414,-3476.51,0.00041095,18]
[342862154,1732188652423,-1416.56,0.00041095,18]
[342862155,1732188652432,-182.87493956,0.00041095,18]
[342862156,1732188652441,-151.0,0.00041095,14]
[342862157,1732188652450,-2638.72,0.00041095,18]
[342862158,1732188652459,-1660.98,0.00041095,18]
[342862159,1732188652468,-500.0,0.00041095,18]
[342862160,1732188652477,-151.0,0.00041095,14]
[342862161,1732188652486,-1246.56,0.00041095,18]
[342862162,1732188652496,-500.0,0.00041095,18]
[342862163,1732188652505,-500.0,0.00041095,18]
[342862164,1732188652514,-500.0,0.00041095,18]
[342862165,1732188652526,-1235.32,0.00041095,18]
[342862166,1732188652534,-1108.01,0.00041095,18]
[342862167,1732188652543,-735.13,0.00041095,18]
[342862168,1732188652553,-2198.82,0.00041095,18]
[342862169,1732188652563,-1199.69,0.00041095,18]
[342862170,1732188652571,-500.0,0.00041095,18]
[342862171,1732188652580,-500.0,0.00041095,18]
[342862172,1732188652589,-500.0,0.00041095,18]
[342862173,1732188652599,-856.15,0.00041095,18]
[342862174,1732188652607,-749.96,0.00041095,18]
[342862175,1732188652616,-500.0,0.00041095,18]
[342862176,1732188652625,-500.0,0.00041095,18]
[342862177,1732188652634,-500.0,0.00041095,18]
[342862178,1732188652645,-500.0,0.00041095,18]
[342862179,1732188652654,-500.0,0.00041095,18]
[342862180,1732188652663,-500.0,0.00041095,18]
[342862181,1732188652672,-4671.13,0.00041095,18]
[342862182,1732188652681,-1341.02,0.00041095,18]
[342862183,1732188652690,-1207.89,0.00041095,18]
[342862184,1732188652699,-592.02730042,0.00041095,18]
[342862185,1732188652709,-1587.27,0.00041095,18]
[342862186,1732188652718,-500.0,0.00041095,18]
[342862187,1732188652727,-500.0,0.00041095,18]
[342862188,1732188652737,-527.93,0.00041095,18]
[342862189,1732188652746,-590.72,0.00041095,18]
[342862190,1732188652755,-500.0,0.00041095,18]
[342862191,1732188652764,-500.0,0.00041095,18]
[342862192,1732188652772,-1820.99,0.00041095,18]
[342862193,1732188652781,-500.0,0.00041095,18]
[342862194,1732188652790,-500.0,0.00041095,18]
[342862195,1732188652799,-751.16,0.00041095,18]
[342862196,1732188652807,-500.0,0.00041095,18]
[342862197,1732188652816,-4708.65,0.00041095,18]
[342862198,1732188652825,-535.02,0.00041095,18]
[342862199,1732188652834,-500.0,0.00041095,18]
[342862200,1732188652843,-2929.47,0.00041095,18]
[342862201,1732188652852,-500.0,0.00041095,18]
[342862202,1732188652861,-2840.08,0.00041095,18]
[342862203,1732188652870,-500.0,0.00041095,18]
[342862204,1732188652879,-500.0,0.00041095,18]
[342862205,1732188652887,-1533.4,0.00041095,18]
[342862206,1732188652897,-500.0,0.00041095,18]
[342862207,1732188652907,-500.0,0.00041095,18]
[342862208,1732188652916,-500.0,0.00041095,18]
[342862209,1732188652925,-500.0,0.00041095,18]
[342862210,1732188652934,-818.83,0.00041095,18]
[342862211,1732188652943,-500.0,0.00041095,18]
[342862212,1732188652953,-500.0,0.00041095,18]
[342862213,1732188652962,-1210.24,0.00041095,18]
[342862214,1732188652971,-500.0,0.00041095,18]
[342862215,1732188652980,-1683.49,0.00041095,18]
[342862216,1732188652989,-710.41,0.00041095,18]
[342862217,1732188652999,-987.13,0.00041095,18]
[342862218,1732188653008,-567.5,0.00041095,18]
[342862219,1732188653017,-500.0,0.00041095,18]
[342862220,1732188653027,-1393.33,0.00041095,18]
[342862221,1732188653036,-500.0,0.00041095,18]
[342862222,1732188653045,-500.0,0.00041095,18]
[342862223,1732188653055,-500.0,0.00041095,18]
[342862224,1732188653064,-2190.01,0.00041095,18]
[342862225,1732188653073,-500.0,0.00041095,18]
[342862226,1732188653083,-500.0,0.00041095,18]
[342862227,1732188653093,-630.95249012,0.00041095,18]
[342862228,1732188653102,-1090.99,0.00041095,18]
[342862229,1732188653111,-500.0,0.00041095,18]
[342862230,1732188653120,-2607.53,0.00041095,18]
[342862231,1732188653129,-500.0,0.00041095,18]
[342862232,1732188653138,-500.0,0.00041095,18]
[342862233,1732188653147,-516.30302316,0.00041095,18]
[342862234,1732188653156,-788.15,0.00041095,18]
[342862235,1732188653166,-500.0,0.00041095,18]
[342862236,1732188653175,-500.0,0.00041095,18]
[342862237,1732188653184,-3210.45,0.00041095,18]
[342862238,1732188653193,-500.0,0.00041095,18]
[342862239,1732188653202,-1023.05,0.00041095,18]
[342862240,1732188653212,-654.27,0.00041095,18]
[342862241,1732188653220,-500.0,0.00041095,18]
[342862242,1732188653230,-1526.84,0.00041095,18]
[342862243,1732188653239,-1556.68,0.00041095,18]
[342862244,1732188653247,-787.89,0.00041095,18]
[342862245,1732188653256,-1147.65,0.00041095,18]
[342862246,1732188653265,-1197.68,0.00041095,18]
[342862247,1732188653274,-500.0,0.00041095,18]
[342862248,1732188653283,-500.0,0.00041095,18]
[342862249,1732188653292,-500.0,0.00041095,18]
[342862250,1732188653302,-509.68,0.00041095,18]
[342862251,1732188653311,-500.0,0.00041095,18]
[342862252,1732188653319,-500.0,0.00041095,18]
[342862253,1732188653328,-892.16,0.00041095,18]
[342862254,1732188653337,-500.0,0.00041095,18]
[342862255,1732188653347,-2277.33,0.00041095,18]
[342862256,1732188653356,-2913.98,0.00041095,18]
[342862257,1732188653365,-500.0,0.00041095,18]
[342862258,1732188653374,-561.0,0.00041095,18]
[342862259,1732188653383,-500.0,0.00041095,18]
[342862260,1732188653394,-1314.73,0.00041095,18]
[342862261,1732188653403,-1444.92,0.00041095,18]
[342862262,1732188653412,-500.0,0.00041095,18]
[342862263,1732188653421,-500.0,0.00041095,18]
[342862264,1732188653430,-547.21573962,0.00041095,18]
[342862265,1732188653439,-500.0,0.00041095,18]
[342862266,1732188653449,-500.0,0.00041095,18]
[342862267,1732188653458,-500.0,0.00041095,18]
[342862268,1732188653467,-500.0,0.00041095,18]
[342862269,1732188653476,-500.0,0.00041095,18]
[342862270,1732188653485,-1298.8,0.00041095,18]
[342862271,1732188653494,-500.0,0.00041095,18]
[342862272,1732188653504,-571.91666796,0.00041095,18]
[342862273,1732188653514,-1869.02,0.00041095,18]
[342862274,1732188653527,-500.0,0.00041095,18]
[342862275,1732188653536,-1279.23,0.00041095,18]
[342862276,1732188653546,-2192.43,0.00041095,18]
[342862277,1732188653555,-776.23,0.00041095,18]
[342862278,1732188653565,-3768.45,0.00041095,18]
[342862279,1732188653574,-500.0,0.00041095,18]
[342862280,1732188653583,-500.0,0.00041095,18]
[342862281,1732188653595,-500.0,0.00041095,18]
[342862282,1732188653604,-500.0,0.00041095,18]
[342862283,1732188653613,-1368.36,0.00041095,120]
[342862284,1732188653622,-500.0,0.00041095,18]
[342862285,1732188653631,-1320.22,0.00041095,18]
[342862286,1732188653640,-500.0,0.00041095,18]
[342862287,1732188653650,-507.0,0.00041095,18]
[342862288,1732188653659,-1169.44,0.00041095,18]
[342862289,1732188653668,-2873.89,0.00041095,18]
[342862290,1732188653677,-1840.77,0.00041095,18]
[342862291,1732188653687,-500.0,0.00041095,18]
[342862292,1732188653696,-500.0,0.00041095,18]
[342862293,1732188653706,-500.0,0.00041095,18]
[342862294,1732188653716,-2890.36,0.00041095,18]
[342862295,1732188653726,-693.17,0.00041095,18]
[342862296,1732188653736,-500.0,0.00041095,18]
[342862297,1732188653745,-500.0,0.00041095,18]
[342862298,1732188653755,-500.0,0.00041095,18]
[342862299,1732188653764,-782.9,0.00041095,18]
[342862300,1732188653773,-500.0,0.00041095,18]
[342862301,1732188653782,-500.0,0.00041095,18]
[342862302,1732188653791,-500.0,0.00041095,18]
[342862303,1732188653800,-500.0,0.00041095,18]
[342862304,1732188653810,-500.0,0.00041095,18]
[342862305,1732188653819,-500.0,0.00041095,18]
[342862306,1732188653828,-991.49,0.00041095,18]
[342862307,1732188653838,-500.0,0.00041095,18]
[342862308,1732188653847,-645.28,0.00041095,18]
[342862309,1732188653856,-999.26,0.00041095,18]
[342862310,1732188653865,-2062.36,0.00041095,18]
[342862311,1732188653874,-500.0,0.00041095,18]
[342862312,1732188653883,-500.0,0.00041095,18]
[342862313,1732188653892,-500.0,0.00041095,18]
[342862314,1732188653901,-785.46,0.00041095,18]
[342862315,1732188653911,-568.1,0.00041095,18]
[342862316,1732188653920,-500.0,0.00041095,18]
[342862317,1732188653930,-1165.43,0.00041095,18]
[342862318,1732188653939,-500.0,0.00041095,18]
[342862319,1732188653948,-500.0,0.00041095,18]
[342862320,1732188653958,-710.23,0.00041095,18]
[342862321,1732188653967,-500.0,0.00041095,18]
[342862322,1732188653976,-500.0,0.00041095,18]
[342862323,1732188653985,-151.0,0.00041095,14]
[342862324,1732188653995,-500.0,0.00041095,18]
[342862325,1732188654004,-3373.45,0.00041095,18]
[342862326,1732188654013,-151.0,0.00041095,14]
[342862327,1732188654023,-500.0,0.00041095,18]
[342862328,1732188654032,-500.0,0.00041095,18]
[342862329,1732188654042,-500.0,0.00041095,18]
[342862330,1732188654052,-500.0,0.00041095,18]
[342862331,1732188654061,-500.0,0.00041095,18]
[342862332,1732188654071,-531.48,0.00041095,18]
[342862333,1732188654080,-1119.73,0.00041095,18]
[342862334,1732188654089,-151.0,0.00041095,14]
[342862335,1732188654099,-500.0,0.00041095,18]
[342862336,1732188654108,-1767.95,0.00041095,18]
[342862337,1732188654117,-500.0,0.00041095,18]
[342862338,1732188654127,-503.53,0.00041095,18]
[342862339,1732188654136,-1179.15,0.00041095,18]
[342862340,1732188654146,-500.0,0.00041095,18]
[342862341,1732188654155,-500.0,0.00041095,18]
[342862342,1732188654165,-500.0,0.00041095,18]
[342862343,1732188654174,-1369.98,0.00041095,18]
[342862344,1732188654184,-652.22,0.00041095,18]
[342862345,1732188654194,-1868.77,0.00041095,18]
[342862346,1732188654203,-500.0,0.00041095,18]
[342862347,1732188654213,-500.0,0.00041095,18]
[342862348,1732188654223,-1317.48,0.00041095,18]
[342862349,1732188654232,-5053.8,0.00041095,18]
[342862350,1732188654241,-500.0,0.00041095,18]
[342862351,1732188654251,-1609.13,0.00041095,18]
[342862352,1732188654260,-500.0,0.00041095,18]
[342862353,1732188654269,-500.0,0.00041095,18]
[342862354,1732188654278,-500.0,0.00041095,18]
[342862355,1732188654287,-1126.83,0.00041095,18]
[342862356,1732188654296,-856.82,0.00041095,18]
[342862357,1732188654306,-500.0,0.00041095,18]
[342862358,1732188654315,-2079.48,0.00041095,18]
[342862359,1732188654324,-500.0,0.00041095,18]
[342862360,1732188654333,-2260.19,0.00041095,18]
[342862361,1732188654342,-619.89,0.00041095,18]
[342862362,1732188654352,-500.0,0.00041095,18]
[342862363,1732188654361,-3785.05,0.00041095,18]
[342862364,1732188654371,-2503.42,0.00041095,18]
[342862365,1732188654380,-500.0,0.00041095,18]
[342862366,1732188654390,-2832.53,0.00041095,18]
[342862367,1732188654400,-500.0,0.00041095,18]
[342862368,1732188654409,-3144.76,0.00041095,18]
[342862369,1732188654418,-603.77,0.00041095,18]
[342862370,1732188654427,-1638.13,0.00041095,18]
[342862371,1732188654436,-49155.44,0.00041095,18]
[342862372,1732188654445,-783.7,0.00041095,18]
[342862373,1732188654454,-500.0,0.00041095,18]
[342862374,1732188654463,-563.702367,0.00041095,14]
[342862375,1732188654472,-563.702367,0.00041095,14]
[342862376,1732188654481,-500.0,0.00041095,18]
[342862377,1732188654490,-1368.08,0.00041095,18]
[342862378,1732188654499,-500.0,0.00041095,18]
[342862379,1732188654512,-500.0,0.00041095,18]
[342862380,1732188654521,-500.0,0.00041095,18]
[342862381,1732188654530,-514.01751804,0.00041095,18]
[342862382,1732188654539,-563.702367,0.00041095,14]
[342862383,1732188654548,-1205.64,0.00041095,18]
[342862384,1732188654557,-500.0,0.00041095,18]
[342862385,1732188654565,-563.702367,0.00041095,14]
[342862386,1732188654574,-390.84273991,0.00041095,18]
[342862387,1732188654583,-650.72,0.00041095,18]
[342862388,1732188654591,-846.48,0.00041095,18]
[342862389,1732188654601,-633.75,0.00041095,18]
[342862390,1732188654610,-500.0,0.00041095,18]
[342862391,1732188654618,-500.0,0.00041095,18]
[342862392,1732188654627,-1186.49,0.00041095,18]
[342862393,1732188654636,-616.95,0.00041095,18]
[342862394,1732188654647,-500.0,0.00041095,18]
[342862395,1732188654655,-904.62,0.00041095,18]
[342862396,1732188654664,-5104.98,0.00041095,18]
[342862397,1732188654673,-2203.01,0.00041095,18]
[342862398,1732188654682,-500.0,0.00041095,18]
[342862399,1732188654690,-500.0,0.00041095,18]
[342862400,1732188654699,-500.0,0.00041095,18]
[342862401,1732188654707,-500.0,0.00041095,18]
[342862402,1732188654716,-1045.12,0.00041095,18]
[342862403,1732188654725,-500.0,0.00041095,18]
[342862404,1732188654733,-530.16442379,0.00041095,18]
[342862405,1732188654743,-500.0,0.00041095,18]
[342862406,1732188654751,-500.0,0.00041095,18]
[342862407,1732188654760,-1317.95,0.00041095,18]
[342862408,1732188654770,-1660.93,0.00041095,18]
[342862409,1732188654779,-500.0,0.00041095,18]
[342862410,1732188654788,-1621.98,0.00041095,18]
[342862411,1732188654797,-1528.73,0.00041095,18]
[342862412,1732188654806,-500.0,0.00041095,18]
[342862413,1732188654815,-1523.56,0.00041095,18]
[342862414,1732188654824,-1171.23,0.00041095,18]
[342862415,1732188654832,-500.0,0.00041095,18]
[342862416,1732188654841,-500.0,0.00041095,18]
[342862417,1732188654850,-500.0,0.00041095,18]
[342862418,1732188654859,-2238.84,0.00041095,18]
[342862419,1732188654868,-500.0,0.00041095,18]
[342862420,1732188654878,-500.0,0.00041095,18]
[342862421,1732188654887,-500.0,0.00041095,18]
[342862422,1732188654898,-2242.05,0.00041095,18]
[342862423,1732188654907,-3635.55,0.00041095,18]
[342862424,1732188654917,-601.84,0.00041095,18]
[342862425,1732188654926,-1387.15,0.00041095,18]
[342862426,1732188654936,-500.0,0.00041095,18]
[342862427,1732188654945,-593.26,0.00041095,18]
[342862428,1732188654955,-500.0,0.00041095,18]
[342862429,1732188654964,-500.0,0.00041095,18]
[342862430,1732188654973,-151.0,0.00041095,14]
[342862431,1732188654983,-4750.81,0.00041095,18]
[342862432,1732188654992,-1041.98,0.00041095,18]
[342862433,1732188655000,-151.0,0.00041095,14]
[342862434,1732188655010,-1016.68,0.00041095,18]
[342862435,1732188655019,-968.99,0.00041095,18]
[342862436,1732188655028,-545.28,0.00041095,18]
[342862437,1732188655037,-500.0,0.00041095,18]
[342862438,1732188655047,-1720.12,0.00041095,18]
[342862439,1732188655056,-500.0,0.00041095,18]
[342862440,1732188655065,-708.29,0.00041095,18]
[342862441,1732188655075,-500.0,0.00041095,18]
[342862442,1732188655084,-500.0,0.00041095,18]
[342862443,1732188655094,-500.0,0.00041095,18]
[342862444,1732188655104,-6321.23,0.00041095,18]
[342862445,1732188655114,-670.4,0.00041095,18]
[342862446,1732188655125,-2418.94,0.00041095,18]
[342862447,1732188655134,-500.0,0.00041095,18]
[342862448,1732188655145,-151.0,0.00041095,14]
[342862449,1732188655155,-500.0,0.00041095,18]
[342862450,1732188655164,-151.0,0.00041095,14]
[342862451,1732188655173,-633.55,0.00041095,18]
[342862452,1732188655183,-500.0,0.00041095,18]
[342862453,1732188655193,-2521.49,0.00041095,18]
[342862454,1732188655202,-2367.38,0.00041095,18]
[342862455,1732188655213,-1789.97,0.00041095,18]
[342862456,1732188655223,-2944.82,0.00041095,18]
[342862457,1732188655232,-500.0,0.00041095,18]
[342862458,1732188655241,-500.0,0.00041095,18]
[342862459,1732188655250,-500.0,0.00041095,18]
[342862460,1732188655259,-500.0,0.00041095,18]
[342862461,1732188655268,-500.0,0.00041095,18]
[342862462,1732188655277,-500.0,0.00041095,18]
[342862463,1732188655287,-500.0,0.00041095,18]
[342862464,1732188655296,-500.0,0.00041095,18]
[342862465,1732188655305,-12453.08,0.00041095,18]
[342862466,1732188655315,-500.0,0.00041095,18]
[342862467,1732188655324,-5453.58,0.00041095,18]
[342862468,1732188655333,-500.0,0.00041095,18]
[342862469,1732188655342,-8762.49,0.00041095,18]
[342862470,1732188655351,-500.0,0.00041095,18]
[342862471,1732188655360,-561.69,0.00041095,18]
[342862472,1732188655369,-1258.47,0.00041095,18]
[342862473,1732188655379,-1841.14,0.00041095,18]
[342862474,1732188655389,-500.0,0.00041095,18]
[342862475,1732188655399,-500.0,0.00041095,18]
[342862476,1732188655408,-788.6,0.00041095,18]
[342862477,1732188655417,-500.0,0.00041095,18]
[342862478,1732188655428,-500.0,0.00041095,18]
[342862479,1732188655437,-151.0,0.00041095,14]
[342862480,1732188655447,-1981.45,0.00041095,18]
[342862481,1732188655455,-151.0,0.00041095,14]
[342862482,1732188655464,-999.72,0.00041095,18]
[342862483,1732188655473,-751.12,0.00041095,18]
[342862484,1732188655482,-500.0,0.00041095,18]
[342862485,1732188655491,-1693.94,0.00041095,18]
[342862486,1732188655500,-6761.6,0.00041095,18]
[342862487,1732188655510,-500.0,0.00041095,18]
[342862488,1732188655520,-500.0,0.00041095,18]
[342862489,1732188655529,-500.0,0.00041095,18]
[342862490,1732188655539,-500.0,0.00041095,18]
[342862491,1732188655547,-500.0,0.00041095,18]
[342862492,1732188655556,-773.23,0.00041095,18]
[342862493,1732188655565,-997.35,0.00041095,18]
[342862494,1732188655574,-500.0,0.00041095,18]
[342862495,1732188655583,-500.0,0.00041095,18]
[342862496,1732188655593,-1708.33,0.00041095,18]
[342862497,1732188655603,-500.0,0.00041095,18]
[342862498,1732188655612,-2927.63,0.00041095,18]
[342862499,1732188655621,-500.0,0.00041095,18]
[342862500,1732188655630,-500.0,0.00041095,18]
[342862501,1732188655638,-500.0,0.00041095,18]
[342862502,1732188655649,-2166.88,0.00041095,18]
[342862503,1732188655658,-500.0,0.00041095,18]
[342862504,1732188655667,-151.0,0.00041095,14]
[342862505,1732188655676,-151.0,0.00041095,14]
[342862506,1732188655685,-500.0,0.00041095,18]
[342862507,1732188655695,-151.0,0.00041095,14]
[342862508,1732188655704,-2218.42,0.00041095,18]
[342862509,1732188655713,-9845.73,0.00041095,18]
[342862510,1732188655723,-500.0,0.00041095,18]
[342862511,1732188655732,-1560.42,0.00041095,18]
[342862512,1732188655741,-500.0,0.00041095,18]
[342862513,1732188655751,-500.0,0.00041095,18]
[342862514,1732188655760,-684.26,0.00041095,18]
[342862515,1732188655770,-500.0,0.00041095,18]
[342862516,1732188655779,-533.49793986,0.00041095,7]
[342862517,1732188655787,-1235.73,0.00041095,18]
[342862518,1732188655797,-500.0,0.00041095,18]
[342862519,1732188655806,-903.33,0.00041095,18]
[342862520,1732188655815,-1074.65,0.00041095,18]
[342862521,1732188655824,-500.0,0.00041095,18]
[342862522,1732188655833,-1709.21,0.00041095,120]
[342862523,1732188655842,-3308.62,0.00041095,18]
[342862524,1732188655851,-500.0,0.00041095,18]
[342862525,1732188655860,-500.0,0.00041095,18]
[342862526,1732188655869,-500.0,0.00041095,18]
[342862527,1732188655879,-500.0,0.00041095,18]
[342862528,1732188655888,-687.18,0.00041095,18]
[342862529,1732188655898,-639.48,0.00041095,18]
[342862530,1732188655907,-1595.67,0.00041095,18]
[342862531,1732188655916,-2496.06,0.00041095,18]
[342862532,1732188655925,-1543.74,0.00041095,18]
[342862533,1732188655934,-691.64,0.00041095,18]
[342862534,1732188655943,-500.0,0.00041095,18]
[342862535,1732188655952,-500.0,0.00041095,18]
[342862536,1732188655961,-824.42,0.00041095,18]
[342862537,1732188655970,-1083.82,0.00041095,18]
[342862538,1732188655979,-500.0,0.00041095,18]
[342862539,1732188655988,-5078.02,0.00041095,18]
[342862540,1732188655998,-1836.22,0.00041095,18]
[342862541,1732188656006,-500.0,0.00041095,18]
[342862542,1732188656016,-500.0,0.00041095,18]
[342862543,1732188656025,-1381.54,0.00041095,18]
[342862544,1732188656034,-500.0,0.00041095,18]
[342862545,1732188656044,-500.0,0.00041095,18]
[342862546,1732188656053,-500.0,0.00041095,18]
[342862547,1732188656062,-151.0,0.00041095,14]
[342862548,1732188656071,-151.0,0.00041095,14]
[342862549,1732188656081,-151.0,0.00041095,14]
[342862550,1732188656090,-524.54,0.00041095,18]
[342862551,1732188656099,-2790.32,0.00041095,18]
[342862552,1732188656109,-500.0,0.00041095,18]
[342862553,1732188656118,-500.0,0.00041095,18]
[342862554,1732188656127,-1527.41,0.00041095,18]
[342862555,1732188656137,-1973.17,0.00041095,18]
[342862556,1732188656148,-500.0,0.00041095,18]